bitfinex/quotes_BTCUSD_20220111
["timestamp","ask_amount","ask_price","bid_price","bid_amount"]
[1641903319959,1.97284498,41903.0,41902.0,0.0266192]
[1641903320155,1.98844056,41903.0,41902.0,0.02729841]
[1641903320355,1.98844056,41903.0,41902.0,0.00135841]
[1641903320555,2.23770296,41903.0,41902.0,0.00067921]
[1641903320756,2.23770296,41903.0,41902.0,0.00061921]
[1641903321157,2.31138396,41903.0,41902.0,0.00061921]
[1641903321358,2.37101147,41903.0,41900.0,0.24]
[1641903321558,1.00718993,41901.0,41900.0,0.24]
[1641903321759,1.79078475,41901.0,41900.0,0.24]
[1641903321958,1.39078475,41901.0,41900.0,0.23994]
[1641903322157,1.05975232,41901.0,41900.0,0.23994]
[1641903322608,1.05969232,41901.0,41900.0,0.23994]
[1641903323100,1.06969232,41901.0,41900.0,0.23994]
[1641903323304,1.06969232,41901.0,41900.0,0.28988]
[1641903323610,0.80072475,41901.0,41900.0,0.28988]
[1641903323802,0.39115193,41901.0,41900.0,0.28988]
[1641903324404,0.38115193,41901.0,41900.0,0.28982]
[1641903324803,0.00706993,41901.0,41900.0,0.28982]
[1641903325005,0.00700993,41901.0,41900.0,0.28982]
[1641903325305,0.02500993,41901.0,41900.0,0.28982]
[1641903325503,0.04066551,41901.0,41900.0,0.28982]
[1641903326156,0.04060551,41901.0,41900.0,0.28982]
[1641903326554,0.02260551,41901.0,41900.0,0.28982]
[1641903327156,0.04860551,41901.0,41900.0,0.29182]
[1641903327357,0.04854551,41901.0,41900.0,0.29182]
[1641903328660,0.37248551,41901.0,41900.0,0.28982]
[1641903329155,0.38948551,41901.0,41900.0,0.28982]
[1641903329357,0.38948551,41901.0,41900.0,0.28976]
[1641903329558,0.76356751,41901.0,41900.0,0.28976]
[1641903330002,0.76350751,41901.0,41900.0,0.28976]
[1641903330401,0.74650751,41901.0,41900.0,0.28976]
[1641903330602,0.74650751,41901.0,41900.0,0.2897]
[1641903330803,1.20343756,41901.0,41900.0,0.23988]
[1641903331102,1.20343756,41901.0,41894.0,0.00026156]
[1641903331103,0.114141,41899.0,41894.0,0.00026156]
[1641903331311,0.06095729,41897.0,41894.0,0.00026156]
[1641903331705,0.64311516,41896.0,41894.0,0.00026156]
[1641903331905,1.724168,41895.0,41894.0,0.00020156]
[1641903332104,0.421868,41895.0,41894.0,0.00020156]
[1641903332502,0.721868,41895.0,41894.0,0.00020156]
[1641903333103,1.571868,41895.0,41894.0,0.00014156]
[1641903333302,1.583868,41895.0,41894.0,0.00014156]
[1641903333554,1.17269424,41895.0,41894.0,0.00014156]
[1641903333959,0.87269424,41895.0,41894.0,0.00014156]
[1641903334355,0.87269424,41895.0,41894.0,0.24008156]
[1641903334555,0.86069424,41895.0,41894.0,0.29008156]
[1641903334760,0.421868,41895.0,41894.0,0.29008156]
[1641903334956,0.421808,41895.0,41894.0,0.29008156]
[1641903335258,0.0607,41895.0,41894.0,0.29008156]
[1641903335556,0.44797934,41895.0,41894.0,0.29002156]
[1641903336155,0.06064,41895.0,41894.0,0.29002156]
[1641903336357,0.93738992,41895.0,41894.0,0.29002156]
[1641903336560,0.92438992,41895.0,41894.0,0.29002156]
[1641903336857,0.92568538,41895.0,41894.0,0.24008156]
[1641903337057,1.30757417,41895.0,41894.0,0.24008156]
[1641903337314,1.32746196,41895.0,41894.0,0.24008156]
[1641903337905,1.32746196,41895.0,41894.0,0.24002156]
[1641903338504,1.31540196,41895.0,41894.0,0.24002156]
[1641903339111,1.31540196,41895.0,41894.0,0.23996156]
[1641903339307,1.32640196,41895.0,41894.0,0.23996156]
[1641903339506,2.59240196,41895.0,41894.0,0.23996156]
[1641903339706,2.59234196,41895.0,41894.0,0.23996156]
[1641903339906,1.35,41894.0,41892.0,0.00067446]
[1641903340107,1.35,41894.0,41892.0,0.00061446]
[1641903340108,3.25187312,41893.0,41892.0,0.00061446]
[1641903340307,3.90828212,41893.0,41892.0,0.00061446]
[1641903340508,4.10828212,41893.0,41885.0,9.0]
[1641903340707,0.00127365,41886.0,41885.0,9.0]
[1641903340911,1.31592035,41886.0,41885.0,9.0]
[1641903341158,2.01709744,41886.0,41885.0,9.0]
[1641903341455,2.01709744,41886.0,41885.0,8.99994]
[1641903341856,2.07674544,41886.0,41885.0,8.99994]
[1641903342058,1.64880737,41886.0,41885.0,8.99994]
[1641903342457,1.64551516,41886.0,41885.0,8.99988]
[1641903342657,0.64551516,41886.0,41885.0,8.99988]
[1641903342870,0.65346295,41886.0,41885.0,8.99988]
[1641903343061,0.6522493,41886.0,41885.0,8.99988]
[1641903343260,1.04908129,41886.0,41885.0,8.99988]
[1641903343760,1.5198949,41886.0,41885.0,8.99982]
[1641903344361,1.5198349,41886.0,41885.0,8.99982]
[1641903344661,1.5068349,41886.0,41885.0,8.99982]
[1641903345110,1.5068349,41886.0,41885.0,9.23976]
[1641903345309,1.5178349,41886.0,41885.0,9.23976]
[1641903345815,1.5177749,41886.0,41885.0,9.23976]
[1641903346208,0.78001459,41886.0,41885.0,8.99976]
[1641903346408,0.3851826,41886.0,41885.0,8.9997]
[1641903346814,0.76497795,41886.0,41885.0,9.0497]
[1641903347010,0.3851226,41886.0,41885.0,9.0497]
[1641903347209,0.9658577,41886.0,41885.0,8.98423145]
[1641903347611,0.6658577,41886.0,41885.0,8.98417145]
[1641903348212,0.6657977,41886.0,41885.0,8.98417145]
[1641903348657,0.6537977,41886.0,41885.0,8.98417145]
[1641903348858,0.6537977,41886.0,41885.0,8.98411145]
[1641903349259,1.1647977,41886.0,41885.0,8.98411145]
[1641903349463,1.1647377,41886.0,41885.0,8.98411145]
[1641903349658,1.16445041,41886.0,41885.0,8.98411145]
[1641903350059,0.69809653,41886.0,41885.0,8.98405145]
[1641903350466,1.58709653,41886.0,41885.0,8.62456289]
[1641903350658,1.18824444,41886.0,41885.0,8.62456289]
[1641903350859,0.91950934,41886.0,41885.0,8.62456289]
[1641903351060,1.29196954,41886.0,41885.0,8.62456289]
[1641903351261,1.29196954,41886.0,41885.0,8.62450289]
[1641903351262,1.30596954,41886.0,41885.0,8.62450289]
[1641903351662,2.41420975,41886.0,41885.0,8.14683989]
[1641903351860,2.28838775,41886.0,41885.0,8.14683989]
[1641903352311,2.28838775,41886.0,41885.0,7.66916289]
[1641903352507,2.57462669,41886.0,41885.0,7.66910289]
[1641903352807,1.96638648,41886.0,41885.0,7.66910289]
[1641903353008,2.56638648,41886.0,41885.0,7.66833589]
[1641903353210,2.47732648,41886.0,41885.0,7.66833589]
[1641903353407,1.97732648,41886.0,41885.0,7.66833589]
[1641903353807,1.97732648,41886.0,41885.0,7.66827589]
[1641903354008,2.99209914,41886.0,41885.0,7.66827589]
[1641903354409,2.98103914,41886.0,41885.0,7.61866186]
[1641903354616,1.35,41884.0,41870.0,1.1502]
[1641903354810,1.35,41884.0,41866.0,0.9688]
[1641903354811,0.00129988,41871.0,41866.0,0.9688]
[1641903355010,0.00128168,41869.0,41868.0,0.00271063]
[1641903355610,0.00128168,41869.0,41868.0,0.00265063]
[1641903355808,0.00124643,41869.0,41868.0,0.00265063]
[1641903356264,0.00118643,41869.0,41862.0,0.47252384]
[1641903356666,0.00123356,41863.0,41862.0,0.47252384]
[1641903357272,0.003,41863.0,41862.0,0.84676184]
[1641903357465,0.00294,41863.0,41862.0,1.12195979]
[1641903358666,0.00123277,41871.0,41862.0,1.12195979]
[1641903358868,0.00123277,41871.0,41869.0,0.41341595]
[1641903359072,0.5,41874.0,41869.0,0.41341595]
[1641903359267,0.5,41874.0,41869.0,0.68651755]
[1641903359667,0.42398419,41878.0,41869.0,0.68651755]
[1641903359668,0.42270636,41878.0,41869.0,0.68651755]
[1641903359914,0.00129327,41878.0,41869.0,0.68732323]
[1641903360209,0.00129327,41878.0,41876.0,0.458843]
[1641903360412,0.374238,41877.0,41869.0,0.27390728]
[1641903360608,0.00129327,41878.0,41869.0,0.27390728]
[1641903360908,0.00129327,41878.0,41875.0,0.00080552]
[1641903361309,0.00329327,41878.0,41875.0,0.33873192]
[1641903361710,0.00323327,41878.0,41875.0,0.33873192]
[1641903362309,0.00323327,41878.0,41875.0,0.3379264]
[1641903362513,0.00123327,41878.0,41875.0,0.3379264]
[1641903362911,0.00117327,41878.0,41875.0,0.3379264]
[1641903363312,0.02217327,41878.0,41875.0,0.3379264]
[1641903363558,0.02217327,41878.0,41874.0,0.00076111]
[1641903363959,0.08188327,41878.0,41874.0,0.00076111]
[1641903364361,0.059712,41877.0,41874.0,0.00076111]
[1641903364562,0.08188327,41878.0,41874.0,0.0006288]
[1641903364964,0.02217327,41878.0,41874.0,0.0006288]
[1641903365168,0.00117327,41878.0,41874.0,0.0006288]
[1641903365363,0.01517327,41878.0,41874.0,0.0006288]
[1641903365563,0.01517327,41878.0,41874.0,0.2106288]
[1641903365765,0.01517327,41878.0,41874.0,0.21]
[1641903366367,0.01511327,41878.0,41874.0,0.21]
[1641903366567,0.00111327,41878.0,41874.0,0.21]
[1641903366966,0.00111327,41878.0,41873.0,0.33434236]
[1641903367408,0.01311327,41878.0,41872.0,0.33825495]
[1641903367711,0.01305327,41878.0,41872.0,0.33825495]
[1641903368107,0.01305327,41878.0,41872.0,0.33903676]
[1641903368508,0.059708,41876.0,41872.0,0.33903676]
[1641903368708,0.059648,41876.0,41872.0,0.33903676]
[1641903369109,0.059648,41876.0,41872.0,0.00078181]
[1641903369308,0.071648,41876.0,41872.0,0.00478181]
[1641903369908,0.071588,41876.0,41872.0,0.00478181]
[1641903370110,0.012,41876.0,41872.0,0.00478181]
[1641903370511,0.00105327,41878.0,41872.0,0.00078181]
[1641903370710,0.00105327,41878.0,41872.0,0.00156169]
[1641903370911,0.00105327,41878.0,41872.0,0.00077988]
[1641903371170,0.05971424,41874.0,41872.0,0.00077988]
[1641903371372,0.05971424,41874.0,41872.0,0.00577988]
[1641903371773,0.05971424,41874.0,41872.0,0.00571988]
[1641903371973,0.37553014,41873.0,41872.0,0.005]
[1641903372173,0.37053014,41873.0,41872.0,0.005]
[1641903372373,0.3718001,41873.0,41872.0,0.005]
[1641903372574,0.68998052,41873.0,41871.0,0.00077989]
[1641903372773,1.473502,41872.0,41871.0,0.00077989]
[1641903372977,1.473502,41872.0,41871.0,0.00071989]
[1641903373173,1.473502,41872.0,41860.0,0.44576415]
[1641903373376,0.059723,41867.0,41860.0,0.44576415]
[1641903373575,0.059663,41867.0,41855.0,0.9808]
[1641903373874,0.057863,41867.0,41860.0,0.33701346]
[1641903374075,0.057863,41867.0,41856.0,0.1]
[1641903374276,0.32543528,41869.0,41861.0,0.00794]
[1641903374277,0.29608722,41865.0,41861.0,0.00794]
[1641903375114,0.41209653,41864.0,41861.0,0.00794]
[1641903375417,0.374324,41863.0,41861.0,0.00794]
[1641903375617,0.374324,41863.0,41861.0,0.00788]
[1641903376416,0.43405541,41863.0,41861.0,0.00788]
[1641903376814,0.43405541,41863.0,41861.0,0.00782]
[1641903377417,1.63431459,41862.0,41861.0,0.00782]
[1641903377620,1.74428759,41862.0,41861.0,0.00782]
[1641903377818,1.96342427,41862.0,41861.0,0.00782]
[1641903378017,1.96465543,41862.0,41861.0,0.00776]
[1641903378660,0.39007584,41862.0,41861.0,0.00776]
[1641903378860,0.84007584,41862.0,41861.0,0.00776]
[1641903379063,0.33034084,41862.0,41861.0,0.00776]
[1641903379264,0.17390416,41862.0,41861.0,0.0077]
[1641903379468,0.172673,41862.0,41861.0,0.0077]
[1641903379866,0.172613,41862.0,41861.0,0.0077]
[1641903380566,0.157613,41862.0,41861.0,0.00764]
[1641903381468,0.171613,41862.0,41861.0,0.00764]
[1641903381965,0.171613,41862.0,41861.0,0.00758]
[1641903382607,0.157613,41862.0,41861.0,0.00758]
[1641903383208,0.157613,41862.0,41861.0,0.00752]
[1641903383414,0.171613,41862.0,41861.0,0.00752]
[1641903384011,0.91350639,41862.0,41861.0,0.00752]
[1641903384411,1.35890622,41862.0,41861.0,0.00746]
[1641903384610,1.34490622,41862.0,41861.0,0.00746]
[1641903384810,0.89950639,41862.0,41861.0,0.00746]
[1641903385411,0.91050639,41862.0,41861.0,0.00746]
[1641903385612,0.64355507,41862.0,41861.0,0.0074]
[1641903385812,0.168613,41862.0,41861.0,0.0074]
[1641903386658,0.157613,41862.0,41861.0,0.0074]
[1641903386858,1.63509587,41862.0,41861.0,0.00734]
[1641903387057,0.58509587,41862.0,41861.0,0.00734]
[1641903387457,0.59809587,41862.0,41861.0,0.00734]
[1641903387857,0.55039587,41862.0,41861.0,0.00734]
[1641903388059,0.122913,41862.0,41861.0,0.00728]
[1641903388663,0.109913,41862.0,41861.0,0.00728]
[1641903389160,0.52063733,41862.0,41861.0,0.00728]
[1641903389359,0.53363733,41862.0,41861.0,0.00722]
[1641903389559,0.122913,41862.0,41861.0,0.00722]
[1641903390610,1.12614241,41862.0,41861.0,0.00716]
[1641903390809,0.57614241,41862.0,41861.0,0.00716]
[1641903391411,0.58914241,41862.0,41861.0,0.00716]
[1641903391911,1.98914241,41862.0,41861.0,0.0071]
[1641903392211,0.64633899,41862.0,41861.0,0.0071]
[1641903392410,0.59633899,41862.0,41861.0,0.0071]
[1641903392612,0.58333899,41862.0,41861.0,0.0071]
[1641903393010,0.58333899,41862.0,41861.0,0.00704]
[1641903393411,0.48542599,41862.0,41861.0,0.00704]
[1641903393868,0.53542599,41862.0,41861.0,0.00704]
[1641903394063,0.53542599,41862.0,41861.0,0.00698]
[1641903394064,0.58542599,41862.0,41861.0,0.00698]
[1641903394664,0.97336599,41862.0,41861.0,0.00698]
[1641903395064,0.57336599,41862.0,41861.0,0.00698]
[1641903395265,0.47342599,41862.0,41861.0,0.00692]
[1641903395464,0.48442599,41862.0,41861.0,0.00692]
[1641903395865,1.49948763,41862.0,41861.0,0.00692]
[1641903396064,1.03331822,41862.0,41861.0,0.00692]
[1641903396470,1.03331822,41862.0,41861.0,0.00686]
[1641903396666,0.61623046,41862.0,41861.0,0.00686]
[1641903397066,0.61617046,41862.0,41861.0,0.00686]
[1641903397316,0.62717046,41862.0,41861.0,0.00686]
[1641903397710,0.62717046,41862.0,41861.0,0.0068]
[1641903397910,0.62717046,41862.0,41861.0,0.0018]
[1641903398311,0.01807658,41862.0,41861.0,0.0018]
[1641903398711,0.00707658,41862.0,41861.0,0.0018]
[1641903399016,0.00707658,41862.0,41861.0,0.00174]
[1641903399413,0.01801658,41862.0,41861.0,0.00174]
[1641903399912,0.42725676,41862.0,41861.0,0.00174]
[1641903400111,0.42725676,41862.0,41861.0,0.00168]
[1641903400512,0.41625676,41862.0,41861.0,0.00168]
[1641903400712,0.41619676,41862.0,41861.0,0.00168]
[1641903401069,0.00695658,41862.0,41861.0,0.00168]
[1641903401368,0.01795658,41862.0,41861.0,0.00162]
[1641903401768,0.01789658,41862.0,41861.0,0.00162]
[1641903402367,0.01789658,41862.0,41861.0,0.00156]
[1641903403068,0.01783658,41862.0,41861.0,0.00156]
[1641903403469,0.03083658,41862.0,41861.0,0.00156]
[1641903403669,0.03083658,41862.0,41861.0,0.0015]
[1641903404269,0.03077658,41862.0,41861.0,0.0015]
[1641903404669,0.00677658,41862.0,41861.0,0.0015]
[1641903404924,0.00677658,41862.0,41861.0,0.00144]
[1641903405527,0.46971658,41862.0,41861.0,0.00144]
[1641903406127,0.01971658,41862.0,41861.0,0.00138]
[1641903406631,0.00671658,41862.0,41861.0,0.00138]
[1641903406826,0.00665658,41862.0,41861.0,0.00138]
[1641903407527,0.01765658,41862.0,41861.0,0.00132]
[1641903408027,0.01759658,41862.0,41861.0,0.00132]
[1641903408666,0.00659658,41862.0,41861.0,0.00126]
[1641903409271,0.00653658,41862.0,41861.0,0.00126]
[1641903409468,0.01753658,41862.0,41861.0,0.00126]
[1641903409867,0.01753658,41862.0,41861.0,0.0012]
[1641903410469,0.66747658,41862.0,41861.0,0.0012]
[1641903410669,0.65647658,41862.0,41861.0,0.0012]
[1641903410868,0.76621658,41862.0,41861.0,0.0012]
[1641903411069,0.76621658,41862.0,41861.0,0.00114]
[1641903411369,0.12721658,41862.0,41861.0,0.00114]
[1641903411569,0.72715658,41862.0,41861.0,0.00114]
[1641903412513,0.12715658,41862.0,41861.0,0.00114]
[1641903412713,0.05641658,41862.0,41861.0,0.00108]
[1641903413214,0.00647658,41862.0,41861.0,0.00108]
[1641903413413,0.01741658,41862.0,41861.0,0.00108]
[1641903414214,0.01741658,41862.0,41861.0,0.00102]
[1641903414419,0.011,41862.0,41861.0,0.00102]
[1641903414617,0.60903388,41865.0,41861.0,1.18500494]
[1641903414917,0.60897388,41865.0,41862.0,0.37565983]
[1641903415115,0.60897388,41865.0,41862.0,0.00126883]
[1641903415315,0.99953952,41872.0,41862.0,0.00120883]
[1641903415519,0.99953952,41872.0,41863.0,0.28906168]
[1641903415520,0.06,41865.0,41863.0,0.28906168]
[1641903415715,0.05994,41865.0,41864.0,0.42653924]
[1641903416168,0.05994,41865.0,41864.0,0.80093024]
[1641903416767,0.20046,41874.0,41864.0,1.22743627]
[1641903416974,0.20046,41874.0,41864.0,0.85304527]
[1641903417168,0.20046,41874.0,41868.0,0.26425458]
[1641903417367,0.374391,41873.0,41868.0,0.26425458]
[1641903417768,0.374391,41873.0,41867.0,0.00065955]
[1641903418770,0.41588036,41869.0,41868.0,0.00059952]
[1641903419269,0.29771875,41873.0,41868.0,0.00059952]
[1641903419474,0.011,41869.0,41868.0,0.00059952]
[1641903419919,0.011,41869.0,41861.0,0.40031841]
[1641903420118,0.011,41869.0,41861.0,0.00102]
[1641903420718,1.43229648,41872.0,41862.0,0.34031727]
[1641903420919,1.43229648,41872.0,41861.0,0.00102]
[1641903421419,1.44729648,41872.0,41863.0,0.00034088]
[1641903421621,0.11945112,41870.0,41863.0,0.00034088]
[1641903421818,0.64269481,41869.0,41863.0,0.00034088]
[1641903422023,0.75,41864.0,41863.0,0.00034088]
[1641903422217,1.17598312,41864.0,41863.0,0.00034088]
[1641903422418,1.17598312,41864.0,41861.0,0.00302]
[1641903422720,0.3015734,41862.0,41861.0,0.00102]
[1641903423217,0.3015134,41862.0,41861.0,0.00102]
[1641903423418,0.3135134,41862.0,41861.0,0.00102]
[1641903423872,0.3135134,41862.0,41861.0,0.00096]
[1641903424073,0.73895782,41862.0,41861.0,0.00096]
[1641903424474,1.23659782,41862.0,41861.0,0.00096]
[1641903424678,1.22459782,41862.0,41861.0,0.00096]
[1641903425074,1.22459782,41862.0,41861.0,0.0009]
[1641903425274,0.77459782,41862.0,41861.0,0.0009]
[1641903425474,0.78459782,41862.0,41861.0,0.0009]
[1641903425674,2.05053782,41862.0,41861.0,0.0009]
[1641903425875,2.10773484,41862.0,41861.0,0.0009]
[1641903426174,2.15773484,41862.0,41861.0,0.0009]
[1641903426475,2.15773484,41862.0,41861.0,0.00084]
[1641903426674,2.14773484,41862.0,41861.0,0.00084]
[1641903426876,2.14767484,41862.0,41861.0,0.00084]
[1641903427516,2.15867484,41862.0,41861.0,0.00078]
[1641903428117,2.15861484,41862.0,41861.0,0.00078]
[1641903428318,1.35,41861.0,41860.0,3.3847692]
[1641903428520,2.29914708,41861.0,41860.0,2.9067522]
[1641903428717,2.29914708,41861.0,41860.0,2.9066922]
[1641903428919,0.64751475,41860.0,41853.0,0.00275898]
[1641903429123,0.64751475,41860.0,41841.0,0.008]
[1641903429124,0.059757,41851.0,41841.0,0.008]
[1641903429322,0.43506786,41844.0,41841.0,0.008]
[1641903429520,0.0477,41843.0,41841.0,0.008]
[1641903429924,1.08159195,41842.0,41841.0,0.008]
[1641903430121,0.38159195,41842.0,41841.0,0.00794]
[1641903430922,0.374391,41842.0,41841.0,0.00794]
[1641903431370,0.0477,41842.0,41841.0,0.70788]
[1641903431570,0.019,41842.0,41841.0,1.08350286]
[1641903431871,0.019,41842.0,41841.0,1.28162525]
[1641903432672,0.48920244,41854.0,41841.0,1.38162525]
[1641903432871,0.48920244,41854.0,41841.0,1.00723425]
[1641903433072,0.374391,41853.0,41849.0,0.31476792]
[1641903433275,0.374391,41853.0,41849.0,0.31470792]
[1641903433775,0.374331,41853.0,41849.0,0.31470792]
[1641903434375,0.374331,41853.0,41849.0,0.31530056]
[1641903434575,0.00069667,41855.0,41849.0,0.31530056]
[1641903435023,0.00063667,41855.0,41849.0,0.31530056]
[1641903435215,0.107441,41858.0,41849.0,0.31464792]
[1641903435415,0.016,41855.0,41849.0,0.31464792]
[1641903435617,0.016,41855.0,41842.0,0.2819]
[1641903436616,0.016,41855.0,41846.0,0.3138241]
[1641903436816,0.40357271,41857.0,41846.0,0.3138241]
[1641903437016,0.059742,41855.0,41848.0,0.34071439]
[1641903437216,0.109639,41854.0,41848.0,0.34071439]
[1641903437621,0.51255231,41854.0,41848.0,0.34071439]
[1641903437817,0.109639,41854.0,41848.0,0.34071439]
[1641903438218,0.104639,41854.0,41848.0,0.34071439]
[1641903438668,0.094639,41854.0,41848.0,0.34071439]
[1641903439071,0.094639,41854.0,41849.0,0.00077088]
[1641903439469,0.101639,41854.0,41849.0,0.00077088]
[1641903440069,0.50455617,41854.0,41849.0,0.00077088]
[1641903440273,0.059747,41853.0,41849.0,0.00077087]
[1641903440471,0.944639,41850.0,41849.0,0.00071087]
[1641903440670,1.44102064,41850.0,41849.0,0.00071087]
[1641903441172,1.49102064,41850.0,41849.0,0.00071087]
[1641903441373,1.89743762,41850.0,41849.0,0.00071087]
[1641903441570,0.059759,41846.0,41841.0,0.00788]
[1641903441770,0.46261662,41845.0,41841.0,0.00788]
[1641903441970,0.00719924,41844.0,41841.0,0.00788]
[1641903442326,0.374458,41843.0,41841.0,0.00788]
[1641903442718,0.00719924,41844.0,41841.0,0.00782]
[1641903443519,0.01719924,41844.0,41841.0,0.00782]
[1641903443922,0.01719924,41844.0,41841.0,0.00776]
[1641903444124,0.07695982,41844.0,41841.0,0.00776]
[1641903444323,0.13671982,41844.0,41841.0,0.00776]
[1641903444723,0.12671982,41844.0,41841.0,0.00776]
[1641903445023,0.06695924,41844.0,41841.0,0.00776]
[1641903445224,0.06695924,41844.0,41841.0,0.0077]
[1641903445527,0.07795924,41844.0,41841.0,0.0077]
[1641903445724,0.374458,41843.0,41841.0,0.0077]
[1641903446568,0.374458,41843.0,41841.0,0.00764]
[1641903446968,0.00719924,41844.0,41841.0,0.00764]
[1641903447167,0.00713924,41844.0,41841.0,0.00764]
[1641903447567,0.02213924,41844.0,41841.0,0.00764]
[1641903447766,0.02213924,41844.0,41841.0,0.00758]
[1641903447966,0.02213924,41844.0,41841.0,0.27037778]
[1641903448366,0.02207924,41844.0,41841.0,0.27037778]
[1641903448768,0.00707924,41844.0,41841.0,0.27037778]
[1641903449568,0.011,41844.0,41841.0,0.27037778]
[1641903449818,0.011,41844.0,41842.0,0.374458]
[1641903450420,0.011,41844.0,41842.0,0.474458]
[1641903450826,0.01094,41844.0,41842.0,0.474458]
[1641903451421,0.06041763,41855.0,41846.0,0.29818863]
[1641903451622,0.374458,41854.0,41846.0,0.29818863]
[1641903452422,0.374458,41854.0,41848.0,0.00064031]
[1641903452622,0.374458,41854.0,41848.0,0.00058031]
[1641903452823,0.05974834,41853.0,41848.0,0.00058031]
[1641903453023,0.094639,41852.0,41848.0,0.00058031]
[1641903453665,0.107639,41852.0,41846.0,0.29818863]
[1641903453966,0.013,41852.0,41846.0,0.29818863]
[1641903454366,0.01294,41852.0,41846.0,0.29818863]
[1641903454969,0.46222131,41859.0,41846.0,0.29818863]
[1641903455168,0.374458,41858.0,41846.0,0.29818863]
[1641903455369,0.434196,41858.0,41850.0,0.2456772]
[1641903455570,0.374458,41858.0,41850.0,0.2456772]
[1641903455768,0.374458,41858.0,41851.0,0.45769676]
[1641903455972,0.00085649,41855.0,41851.0,0.45769676]
[1641903456669,0.00085649,41855.0,41850.0,0.2456772]
[1641903456870,0.00079649,41855.0,41850.0,0.2456772]
[1641903457071,0.00085649,41855.0,41850.0,0.2456772]
[1641903457518,0.01485649,41855.0,41850.0,0.2456772]
[1641903457719,0.01485649,41855.0,41851.0,0.39744636]
[1641903458121,0.01479649,41855.0,41851.0,0.39744636]
[1641903458321,0.014,41855.0,41851.0,0.39744636]
[1641903458922,0.3066,41861.0,41851.0,0.39744636]
[1641903459123,0.374458,41860.0,41857.0,0.31013996]
[1641903459424,0.374398,41860.0,41857.0,0.31013996]
[1641903459623,0.389398,41860.0,41857.0,0.31013996]
[1641903460024,0.389398,41860.0,41857.0,0.31007996]
[1641903460724,0.389338,41860.0,41850.0,0.5140912]
[1641903460926,0.00085644,41861.0,41850.0,0.40611355]
[1641903461375,0.059739,41858.0,41850.0,0.40611355]
[1641903461575,0.05782883,41860.0,41850.0,0.40611355]
[1641903461775,0.05782883,41860.0,41852.0,0.25126474]
[1641903461976,0.00085646,41858.0,41852.0,0.25126474]
[1641903462380,0.059742,41856.0,41852.0,0.25126474]
[1641903462977,0.00085646,41858.0,41852.0,0.25126474]
[1641903463178,0.00085648,41856.0,41852.0,0.25126474]
[1641903465620,0.012,41856.0,41852.0,0.25126474]
[1641903466923,1.0,41860.0,41852.0,0.25126474]
[1641903467125,0.374432,41859.0,41852.0,0.25126474]
[1641903467524,0.434168,41859.0,41852.0,0.25126474]
[1641903467724,0.446168,41859.0,41852.0,0.25126474]
[1641903467925,0.386432,41859.0,41852.0,0.25126474]
[1641903468768,0.374432,41859.0,41852.0,0.25126474]
[1641903469173,0.00085645,41858.0,41852.0,0.25126474]
[1641903470471,0.00079645,41858.0,41852.0,0.25126474]
[1641903471573,0.012,41858.0,41852.0,0.25126474]
[1641903471778,0.01194,41858.0,41852.0,0.25126474]
[1641903472818,1.0,41860.0,41852.0,0.25126474]
[1641903473019,0.374432,41859.0,41852.0,0.25126474]
[1641903473419,0.374432,41859.0,41851.0,0.30615655]
[1641903473619,0.386432,41859.0,41851.0,0.30615655]
[1641903473818,0.386432,41859.0,41851.0,0.30692849]
[1641903474019,0.38728843,41859.0,41851.0,0.30692849]
[1641903474424,0.38728843,41859.0,41854.0,0.31156319]
[1641903474819,0.38728843,41859.0,41851.0,0.30692849]
[1641903475020,0.37528843,41859.0,41851.0,0.30692849]
[1641903475220,0.37528844,41859.0,41851.0,0.30692848]
[1641903475623,0.38428844,41859.0,41851.0,0.30692848]
[1641903476269,0.44402843,41859.0,41851.0,0.30692849]
[1641903476470,0.059742,41858.0,41851.0,0.30692849]
[1641903476669,0.094549,41857.0,41851.0,0.30692849]
[1641903477473,0.094549,41857.0,41851.0,0.3069285]
[1641903477671,0.099549,41857.0,41851.0,0.3069285]
[1641903478473,0.099549,41857.0,41851.0,0.00077195]
[1641903478872,0.094549,41857.0,41851.0,0.00077195]
[1641903479073,0.094549,41857.0,41851.0,0.00060625]
[1641903479578,0.104549,41857.0,41851.0,0.00060625]
[1641903480824,0.094549,41857.0,41851.0,0.00060625]
[1641903481626,0.103549,41857.0,41851.0,0.00060625]
[1641903482027,0.059746,41855.0,41851.0,0.00060625]
[1641903482426,0.059746,41855.0,41851.0,0.000582]
[1641903482626,0.009,41857.0,41851.0,0.000582]
[1641903482827,0.374432,41856.0,41851.0,0.000582]
[1641903483028,0.424432,41856.0,41851.0,0.000582]
[1641903483674,0.384432,41856.0,41849.0,0.4]
[1641903484272,0.384432,41856.0,41849.0,0.72355404]
[1641903485273,0.01,41856.0,41849.0,0.72355404]
[1641903485475,0.01,41856.0,41852.0,0.00122654]
[1641903485674,0.008,41856.0,41853.0,0.059725]
[1641903486075,0.00085648,41855.0,41854.0,1.8265911]
[1641903486275,0.00085648,41855.0,41854.0,2.2010231]
[1641903486475,0.00085648,41855.0,41854.0,2.3010231]
[1641903486676,0.00079648,41855.0,41854.0,1.2510231]
[1641903486875,1.0,41860.0,41854.0,1.2510231]
[1641903487077,0.60892037,41865.0,41858.0,0.00128951]
[1641903487329,0.60892037,41868.0,41864.0,0.00120487]
[1641903487528,0.60886037,41868.0,41864.0,0.00114487]
[1641903487722,0.60886037,41868.0,41865.0,0.29081598]
[1641903487922,0.60886037,41868.0,41867.0,0.3149878]
[1641903488123,0.71053952,41870.0,41867.0,0.3149878]
[1641903488325,1.14173574,41875.0,41867.0,0.3149878]
[1641903488525,0.374432,41874.0,41870.0,0.00126966]
[1641903488725,0.71053952,41875.0,41870.0,0.00126966]
[1641903488726,0.71053952,41875.0,41870.0,0.00120966]
[1641903489125,0.71045946,41875.0,41870.0,0.00120966]
[1641903489323,0.5974,41879.0,41870.0,0.00120966]
[1641903489324,0.71045946,41877.0,41876.0,0.34328904]
[1641903489524,1.08489146,41877.0,41873.0,0.39617551]
[1641903489724,0.05881815,41875.0,41873.0,0.39617551]
[1641903489924,0.05881815,41875.0,41870.0,0.00320966]
[1641903490132,0.05881815,41875.0,41874.0,0.33423067]
[1641903490324,0.05881815,41875.0,41874.0,0.70866267]
[1641903490723,0.05967445,41875.0,41874.0,0.95498916]
[1641903490926,0.0008563,41875.0,41874.0,0.95498916]
[1641903491375,0.0008563,41875.0,41874.0,1.42427009]
[1641903491574,0.0008563,41875.0,41874.0,0.95498916]